{"text_format":"3","workbook":"xlsx","n_sheets":4,"sheets":["TravelReimbursement","MileageWorksheet","parameters","Sheet1"],"not_rendered":{"macros":1,"defined_names":27},"read":"whole","date_system":"1900"}

{"sheet":"TravelReimbursement","index":0,"n_rows":117,"n_cols":12,"rows_kept":117,"merged":[[5,3,5,4],[5,6,5,7],[6,3,6,4],[6,6,6,7],[7,6,7,7],[9,1,9,2],[9,3,9,10],[39,1,39,2],[39,3,39,9],[42,4,42,8],[45,2,50,4],[87,1,87,2],[116,1,116,2]]}
[null,"Please only enter data in YELLOW fields.",{"$nulls":8},"Employee Travel Reimbursement Form"]
[null,"If Excel error appears, click \"Enable\".",{"$nulls":8},"Department of English and Comparative Literature"]
[{"$nulls":10},"Department of American Studies"]
[]
[{"$nulls":9},"Total Reimbursement",{"$f":"+K38+K86+K115","v":{"v":1046.1399999999999,"d":"$1,046.14"}}]
[null,null,"Traveler Name:","John Flysalot",null,"Travel City:","Orlando",null,{"$f":"IF(G7=\"North Carolina\",\"InState\",\"OutofState\")","v":"OutofState"},"Date","Time"]
[null,null,"Traveler PID:",{"v":987654321,"d":"9876-54321"},null,"Travel State:","Florida",null,"Departure:","2015-01-08","10:00:00"]
[{"$nulls":5},"Travel Country:","United States",null,"Return:","2015-01-11","19:00:00"]
[]
[null,"Purpose and Description of Trip (flights from where to where, etc.):",null,"Flew RDU to Orlando round-trip for the annual meeting of the YENSID Association. "]
[]
[]
[null,"Weekday:",null,"Sun.","Mon.","Tues.","Wed.","Thur.","Fri.","Sat.","Weekly","Running"]
[null,"Relevant Dates ®",null,{"$f":"IF(J7=\"\",\"m/d\",(J7-VLOOKUP(WEEKDAY(J7),t_weekday,2)))","v":"2015-01-04"},{"$f":"IFERROR(D14+1,\"m/d\")","v":"2015-01-05"},{"$f":"IFERROR(E14+1,\"m/d\")","v":"2015-01-06"},"2015-01-07","2015-01-08","2015-01-09","2015-01-10","Total","Total"]
["Please enter amounts into the relevant category by dates:"]
[null,"Transportation"]
[null,"Airfare/Train",{"$nulls":5},{"v":450,"d":"450.00"},null,null,{"$f":"SUM(D17:J17)","v":{"v":450,"d":"$450.00"}},{"$f":"K17","v":{"v":450,"d":"$450.00"}}]
[null,"Taxi/Tolls/Public",{"$nulls":5},{"v":25,"d":"25.00"},null,null,{"$f":"SUM(D18:J18)","v":{"v":25,"d":"$25.00"}},{"$f":"K18","v":{"v":25,"d":"$25.00"}}]
[null,"Rental Car / Gas",{"$nulls":8},0,0]
[null,"Parking",{"$nulls":8},0,0]
[null,"Subtotal Transport",null,{"$f":"SUM(D17:D20)","v":0},{"$f":"SUM(E17:E20)","v":0},0,0,{"v":475,"d":"475.00"},0,0,{"$f":"SUM(K17:K20)","v":{"v":475,"d":"$475.00"}},{"$f":"SUM(L17:L20)","v":{"v":475,"d":"$475.00"}}]
[null,"Mileage"]
[null,null,"Enter miles driven -->",{"$nulls":4},11,null,null,{"$f":"SUM(D23:J23)","v":11},{"$f":"K23","v":11}]
[{"$nulls":3},{"$f":"IF(r_totalmileage<=100,D23*r_mileage_higher,IF(f_car_higherrate=\"x\",D23*r_mileage_higher,D23*r_mileage_lower))","v":0},{"$f":"IF(r_totalmileage<=100,E23*r_mileage_higher,IF(f_car_higherrate=\"x\",E23*r_mileage_higher,E23*r_mileage_lower))","v":0},0,0,{"v":6.324999999999999,"d":"6.33"},0,0,{"$f":"SUM(D24:J24)","v":{"v":6.324999999999999,"d":"$6.33"}},{"$f":"K24","v":{"v":6.324999999999999,"d":"$6.33"}}]
[null,"Lodging & Other"]
[null,"Hotel",{"$nulls":5},129.43,129.43,129.43,{"$f":"SUM(D26:J26)","v":{"v":388.29,"d":"$388.29"}},{"$f":"K26","v":{"v":388.29,"d":"$388.29"}}]
[null,"Internet",{"$nulls":8},{"$f":"SUM(D27:J27)","v":0},0]
[null,"Telephone",{"$nulls":8},0,0]
[null,"Registration fees",{"$nulls":8},0,0]
[null,"Other",{"$nulls":8},0,0]
[null,"Subtotal Lodging & Other",null,{"$f":"SUM(D26:D30)","v":0},{"$f":"SUM(E26:E30)","v":0},0,0,129.43,129.43,129.43,{"v":388.29,"d":"$388.29"},{"v":388.29,"d":"$388.29"}]
["Please enter \"x\" into the appropriate meal for each date charged:"]
[null,"Meals"]
[null,"Breakfast",{"$nulls":6},"x","x"]
[null,"Lunch",{"$nulls":5},"x","x","x"]
[null,"Dinner",{"$nulls":5},"x","x"]
[null,"Subtotal Meals",null,{"$f":"IF(toggle_state=\"InState\",SUMPRODUCT(--((D34:D36)=\"x\"),InState),SUMPRODUCT(--((D34:D36)=\"x\"),OutofState))","v":0},0,0,0,{"v":31.599999999999998,"d":"31.60"},{"v":39.8,"d":"39.80"},{"v":18.9,"d":"18.90"},{"$f":"SUM(D37:J37)","v":{"v":90.29999999999998,"d":"$90.30"}},{"$f":"K37","v":{"v":90.29999999999998,"d":"$90.30"}}]
[null,"Total by Day",null,{"$f":"D21+D24+D31+D37","v":0},0,0,0,{"v":642.355,"d":"$642.36"},{"v":169.23000000000002,"d":"$169.23"},{"v":148.33,"d":"$148.33"},{"v":959.915,"d":"$959.92"},{"v":959.915,"d":"$959.92"}]
[{"$nulls":10},{"$f":"IF(K38<>$K$5,\"Continued on next page\",\"\")","v":"Continued on next page"}]
[null,"Notes (optional):\n(press alt+enter to add\nnew lines within a cell)",null,"This example shows that Dr Flysalot drove from his home to RDU Airport and parked there (paid for parking on the 11th when he returned) flew to Orlando (round trip airfare noted on day of departure), took a cab to the hotel, and stayed three nights. Saturday night dinner was an event included in registration, so no per diem for that meal. No breakfast per diem due to time of departure on Thursday and no dinner per diem due to time of return on Sunday (departure before 6am receives breakfast per diem, return after 8pm for dinner per diem). Took cab back to airport on Sunday, flew back to RDU, paid for parking and drove home. "]
[]
[]
[{"$nulls":3},"Enter source of funds (name or number):","Arts and Sciences, $400 department funds per Beverly "]
[]
[{"$nulls":7},"Supplemental Info for Mileage: "]
[null,null,"\nPlease ensure all original receipts related to this trip are attached and legible. Missing receipts will delay your reimbursement.\n"]
[{"$nulls":7},"Trip exceeded 100 miles - please \"X\" in appropriate case:"]
[{"$nulls":7},"1. A state car was not requested. Use state car rate:",{"$nulls":3},"x"]
[]
[{"$nulls":7},"2. I requested a state car but one was unavailable -"]
[{"$nulls":7},"        documentation of the request is attached:"]
[]
[]
[]
[null,"Chartfields (Finance Office Use)"]
[]
[null,null,"Bus Unit","Fund","Source","Dept","Project ID","Program","Cost Code 1","Cost Code 2","Cost Code 3"]
[]
[]
[]
[null,"Weekday:",null,"Sun.","Mon.","Tues.","Wed.","Thur.","Fri.","Sat.","Weekly","Running"]
[null,"Relevant Dates ®",null,{"$f":"IFERROR(J14+1,\"m/d\")","v":"2015-01-11"},{"$f":"IFERROR(D62+1,\"m/d\")","v":"2015-01-12"},{"$f":"IFERROR(E62+1,\"m/d\")","v":"2015-01-13"},{"$f":"IFERROR(F62+1,\"m/d\")","v":"2015-01-14"},{"$f":"IFERROR(G62+1,\"m/d\")","v":"2015-01-15"},{"$f":"IFERROR(H62+1,\"m/d\")","v":"2015-01-16"},{"$f":"IFERROR(I62+1,\"m/d\")","v":"2015-01-17"},"Total","Total"]
["Please enter amounts into the relevant category by dates:"]
[null,"Transportation"]
[null,"Airfare/Train",{"$nulls":8},{"$f":"SUM(D65:J65)","v":0},{"$f":"K65+L17","v":{"v":450,"d":"$450.00"}}]
[null,"Taxi/Tolls/Public",null,{"v":25,"d":"25.00"},{"$nulls":6},{"$f":"SUM(D66:J66)","v":{"v":25,"d":"$25.00"}},{"$f":"K66+L18","v":{"v":50,"d":"$50.00"}}]
[null,"Rental Car / Gas",{"$nulls":8},{"$f":"SUM(D67:J67)","v":0},{"$f":"K67+L19","v":0}]
[null,"Parking",null,{"v":36,"d":"36.00"},{"$nulls":6},{"$f":"SUM(D68:J68)","v":{"v":36,"d":"$36.00"}},{"$f":"K68+L20","v":{"v":36,"d":"$36.00"}}]
[null,"Subtotal Transport",null,{"$f":"SUM(D65:D68)","v":{"v":61,"d":"61.00"}},0,0,0,0,0,0,{"v":61,"d":"$61.00"},{"$f":"SUM(L65:L68)","v":{"v":536,"d":"$536.00"}}]
[null,"Mileage"]
[null,null,"Enter miles driven -->",11,{"$nulls":6},{"$f":"SUM(D71:J71)","v":11},{"$f":"K71+L23","v":22}]
[{"$nulls":3},{"$f":"IF(r_totalmileage<=100,D71*r_mileage_higher,IF(f_car_higherrate=\"x\",D71*r_mileage_higher,D71*r_mileage_lower))","v":{"v":6.324999999999999,"d":"6.33"}},0,0,0,0,0,0,{"$f":"SUM(D72:J72)","v":{"v":6.324999999999999,"d":"$6.33"}},{"$f":"K72+L24","v":{"v":12.649999999999999,"d":"$12.65"}}]
[null,"Lodging & Other"]
[null,"Hotel",{"$nulls":8},{"$f":"SUM(D74:J74)","v":0},{"$f":"K74+L26","v":{"v":388.29,"d":"$388.29"}}]
[null,"Internet",{"$nulls":8},{"$f":"SUM(D75:J75)","v":0},{"$f":"K75+L27","v":0}]
[null,"Telephone",{"$nulls":8},{"$f":"SUM(D76:J76)","v":0},{"$f":"K76+L28","v":0}]
[null,"Registration fees",{"$nulls":8},{"$f":"SUM(D77:J77)","v":0},{"$f":"K77+L29","v":0}]
[null,"Other",{"$nulls":8},{"$f":"SUM(D78:J78)","v":0},{"$f":"K78+L30","v":0}]
[null,"Subtotal Lodging & Other",null,{"$f":"SUM(D74:D78)","v":0},{"$f":"SUM(E74:E78)","v":0},0,0,0,0,0,0,{"$f":"SUM(L74:L78)","v":{"v":388.29,"d":"$388.29"}}]
["Please enter \"x\" into the appropriate meal for each date charged:"]
[null,"Meals"]
[null,"Breakfast",null,"x"]
[null,"Lunch",null,"x"]
[null,"Dinner"]
[null,"Subtotal Meals",null,{"$f":"IF(toggle_state=\"InState\",SUMPRODUCT(--((D82:D84)=\"x\"),InState),SUMPRODUCT(--((D82:D84)=\"x\"),OutofState))","v":{"v":18.9,"d":"18.90"}},0,0,0,0,0,0,{"$f":"SUM(D85:J85)","v":{"v":18.9,"d":"$18.90"}},{"$f":"K85+L37","v":{"v":109.19999999999999,"d":"$109.20"}}]
[null,"Total by Day",null,{"$f":"D69+D72+D79+D85","v":{"v":86.225,"d":"$86.23"}},0,0,0,0,0,0,{"v":86.225,"d":"$86.23"},{"$f":"L69+L72+L79+L85","v":{"v":1046.14,"d":"$1,046.14"}}]
[]
[null,"Notes (optional):\n(press alt+enter to add\nnew lines within a cell)"]
[]
[null,"Weekday:",null,"Sun.","Mon.","Tues.","Wed.","Thur.","Fri.","Sat.","Weekly","GRAND"]
[null,"Relevant Dates ®",null,{"$f":"IFERROR(J62+1,\"m/d\")","v":"2015-01-18"},{"$f":"IFERROR(D91+1,\"m/d\")","v":"2015-01-19"},{"$f":"IFERROR(E91+1,\"m/d\")","v":"2015-01-20"},{"$f":"IFERROR(F91+1,\"m/d\")","v":"2015-01-21"},{"$f":"IFERROR(G91+1,\"m/d\")","v":"2015-01-22"},{"$f":"IFERROR(H91+1,\"m/d\")","v":"2015-01-23"},{"$f":"IFERROR(I91+1,\"m/d\")","v":"2015-01-24"},"Total","TOTAL"]
["Please enter amounts into the relevant category by dates:"]
[null,"Transportation"]
[null,"Airfare/Train",{"$nulls":8},{"$f":"SUM(D94:J94)","v":0},{"$f":"K94+L65","v":{"v":450,"d":"$450.00"}}]
[null,"Taxi/Tolls/Public",{"$nulls":8},{"$f":"SUM(D95:J95)","v":0},{"$f":"K95+L66","v":{"v":50,"d":"$50.00"}}]
[null,"Rental Car / Gas",{"$nulls":8},{"$f":"SUM(D96:J96)","v":0},{"$f":"K96+L67","v":0}]
[null,"Parking",{"$nulls":8},{"$f":"SUM(D97:J97)","v":0},{"$f":"K97+L68","v":{"v":36,"d":"$36.00"}}]
[null,"Subtotal Transport",null,{"$f":"SUM(D94:D97)","v":0},0,0,0,0,0,0,0,{"v":536,"d":"$536.00"}]
[null,"Mileage"]
[null,null,"Enter miles driven -->",{"$nulls":7},{"$f":"SUM(D100:J100)","v":0},{"$f":"K100+L71","v":22}]
[{"$nulls":3},{"$f":"IF(r_totalmileage<=100,D100*r_mileage_higher,IF(f_car_higherrate=\"x\",D100*r_mileage_higher,D100*r_mileage_lower))","v":0},0,0,0,0,0,0,{"$f":"SUM(D101:J101)","v":0},{"$f":"K101+L72","v":{"v":12.649999999999999,"d":"$12.65"}}]
[null,"Lodging & Other"]
[null,"Hotel",{"$nulls":8},{"$f":"SUM(D103:J103)","v":0},{"$f":"K103+L74","v":{"v":388.29,"d":"$388.29"}}]
[null,"Internet",{"$nulls":8},{"$f":"SUM(D104:J104)","v":0},{"$f":"K104+L75","v":0}]
[null,"Telephone",{"$nulls":8},{"$f":"SUM(D105:J105)","v":0},{"$f":"K105+L76","v":0}]
[null,"Registration fees",{"$nulls":8},{"$f":"SUM(D106:J106)","v":0},{"$f":"K106+L77","v":0}]
[null,"Other",{"$nulls":8},{"$f":"SUM(D107:J107)","v":0},{"$f":"K107+L78","v":0}]
[null,"Subtotal Lodging & Other",null,{"$f":"SUM(D103:D107)","v":0},{"$f":"SUM(E103:E107)","v":0},0,0,0,0,0,0,{"v":388.29,"d":"$388.29"}]
["Please enter \"x\" into the appropriate meal for each date charged:"]
[null,"Meals"]
[null,"Breakfast"]
[null,"Lunch"]
[null,"Dinner"]
[null,"Subtotal Meals",null,{"$f":"IF(toggle_state=\"InState\",SUMPRODUCT(--((D111:D113)=\"x\"),InState),SUMPRODUCT(--((D111:D113)=\"x\"),OutofState))","v":0},0,0,0,0,0,0,{"$f":"SUM(D114:J114)","v":0},{"$f":"K114+L85","v":{"v":109.19999999999999,"d":"$109.20"}}]
[null,"Total by Day",null,{"$f":"D98+D101+D108+D114","v":0},{"$f":"E98+E101+E108+E114","v":0},{"$f":"F98+F101+F108+F114","v":0},{"$f":"G98+G101+G108+G114","v":0},{"$f":"H98+H101+H108+H114","v":0},{"$f":"I98+I101+I108+I114","v":0},{"$f":"J98+J101+J108+J114","v":0},{"$f":"K98+K101+K108+K114","v":0},{"v":1046.14,"d":"$1,046.14"}]
[]
[null,"Notes (optional):\n(press alt+enter to add\nnew lines within a cell)"]

{"sheet":"MileageWorksheet","index":1,"n_rows":44,"n_cols":8,"rows_kept":44,"hidden":true,"merged":[[0,0,0,7],[1,2,1,3],[3,2,3,3],[4,2,4,3],[5,2,5,3],[6,2,6,3],[7,2,7,3],[8,2,8,3],[9,2,9,3],[10,2,10,3],[11,2,11,3],[12,2,12,3],[13,2,13,3],[14,2,14,3],[15,2,15,3],[16,2,16,3],[17,2,17,3],[18,2,18,3],[19,2,19,3],[20,1,20,2]]}
[" Mileage Reimbursement Form"]
[null,"Traveler Name:",{"$f":"TravelReimbursement!D6:E6","v":{"$error":"#VALUE!"}}]
[]
[null,"Date","Expense Detail ",null,"Total Miles *","Departure City","Destination City","Round Trip (Y/N)"]
[{"$nulls":4}," "]
[{"$nulls":4},200]
[{"$nulls":4}," "]
[{"$nulls":4}," "]
[{"$nulls":4}," "]
[{"$nulls":4}," "]
[{"$nulls":4}," "]
[{"$nulls":4}," "]
[{"$nulls":4}," "]
[{"$nulls":4}," "]
[{"$nulls":4}," "]
[{"$nulls":4}," "]
[{"$nulls":4}," "]
[{"$nulls":4}," "]
[{"$nulls":4}," "]
[{"$nulls":4}," "]
[null,"Accounting Information",null,null," "]
[null,"Account number",null,"Total miles:",{"$f":"SUM(E5:E21)","v":200},"(automatic calculation)"]
[null,"Budget Type",null,"Rate per mile:",{"v":0.565,"d":"$0.565"},"**","eff 01/01/10"]
[{"$nulls":3},"Total mileage reimbursement:",{"$f":"+E22*E23","v":{"v":112.99999999999999,"d":"$113.00"}}]
[null,69188,"News Department","News Department",null,"Other: "]
[null,69187,"Public Affairs Programming (S.O.T. & P.P.)","Public Affairs Programming (S.O.T. & P.P.)"]
[]
[]
[null,"Employee Signature                                            Date",null,null,"                                    "]
[]
[null," Signature of Approving Dean's Unit Manager                                           Date        "]
[{"$nulls":6},"Y/N"]
["*","If the trip exceeded 100 total miles, did you request a car from UNC Motor Pool?"]
[null,"If you requested a Motor Pool car and one was not available, please document the"]
[null,"date of your request and the person you spoke to.  If you made the request on-line,"]
[null,"please attach a copy.",null,"______________________________________________"]
[{"$nulls":3},"Date of request",null,"Motor Pool Representative"]
[]
[null,"Instructions:"]
[null,"1.    This form can be completed monthly (or earlier if you wish)"]
[null,"2.    Please enter the date, description, and applicable expenses"]
[null,"3.    Please check the account for payment"]
["**","4.    If a trip exceeds 100 miles, and a UNC Motor Pool vehicle is available,"]
[null,null,"mileage will only be reimbursed at $.30/mi."]

{"sheet":"parameters","index":2,"n_rows":198,"n_cols":12,"rows_kept":198,"hidden":true}
[null,"a_states",null,"a_countries",null,null,"Updated 2/17/14"]
[{"$nulls":3},"United States"]
[null,"North Carolina",null,"Afghanistan",null,null,"InState","OutofState",null,"a_cartype"]
[null,"Alabama",null,"Albania",null,"Breakfast",8.2,8.2,null,"Personal car rate - $0.30/mi",{"v":0.3,"d":"$0.300"},"r_statecar"]
[null,"Alaska",null,"Algeria",null,"Lunch",10.7,10.7,null,"State car was unavailable (please provide support) - $0.56/mi",{"v":0.575,"d":"$0.575"},"r_personalcar"]
[null,"Arizona",null,"Andorra",null,"Dinner",18.4,20.9]
[null,"Arkansas",null,"Angola"]
[null,"California",null,"Antigua & Deps",null,null,"a_x",null,"a_yn"]
[null,"Colorado",null,"Argentina",{"$nulls":4},"Y"]
[null,"Connecticut",null,"Armenia",null,null,"x",null,"N"]
[null,"Delaware",null,"Australia"]
[null,"District of Columbia",null,"Austria",null,null,"t_weekday"]
[null,"Florida",null,"Azerbaijan",null,null,1,0]
[null,"Georgia",null,"Bahamas",null,null,2,1]
[null,"Hawaii",null,"Bahrain",null,null,3,2]
[null,"Idaho",null,"Bangladesh",null,null,4,3]
[null,"Illinois",null,"Barbados",null,null,5,4]
[null,"Indiana",null,"Belarus",null,null,6,5]
[null,"Iowa",null,"Belgium",null,null,7,6]
[null,"Kansas",null,"Belize"]
[null,"Kentucky",null,"Benin"]
[null,"Louisiana",null,"Bhutan"]
[null,"Maine",null,"Bolivia"]
[null,"Maryland",null,"Bosnia Herzegovina"]
[null,"Massachusetts",null,"Botswana"]
[null,"Michigan",null,"Brazil"]
[null,"Minnesota",null,"Brunei"]
[null,"Mississippi",null,"Bulgaria"]
[null,"Missouri",null,"Burkina"]
[null,"Montana",null,"Burundi"]
[null,"Nebraska",null,"Cambodia"]
[null,"Nevada",null,"Cameroon"]
[null,"New Hampshire",null,"Canada"]
[null,"New Jersey",null,"Cape Verde"]
[null,"New Mexico",null,"Central African Rep"]
[null,"New York",null,"Chad"]
[null,"North Carolina",null,"Chile"]
[null,"North Dakota",null,"China"]
[null,"Ohio",null,"Colombia"]
[null,"Oklahoma",null,"Comoros"]
[null,"Oregon",null,"Congo"]
[null,"Pennsylvania",null,"Congo {Democratic Rep}"]
[null,"Rhode Island",null,"Costa Rica"]
[null,"South Carolina",null,"Croatia"]
[null,"South Dakota",null,"Cuba"]
[null,"Tennessee",null,"Cyprus"]
[null,"Texas",null,"Czech Republic"]
[null,"Utah",null,"Denmark"]
[null,"Vermont",null,"Djibouti"]
[null,"Virginia",null,"Dominica"]
[null,"Washington",null,"Dominican Republic"]
[null,"West Virginia",null,"East Timor"]
[null,"Wisconsin",null,"Ecuador"]
[null,"Wyoming",null,"Egypt"]
[null,"American Samoa",null,"El Salvador"]
[null,"Guam",null,"Equatorial Guinea"]
[null,"Northern Mariana Islands",null,"Eritrea"]
[null,"Puerto Rico",null,"Estonia"]
[null,"United States Virgin Islands",null,"Ethiopia"]
[null,"OUT OF COUNTRY",null,"Fiji"]
[{"$nulls":3},"Finland"]
[{"$nulls":3},"France"]
[{"$nulls":3},"Gabon"]
[{"$nulls":3},"Gambia"]
[{"$nulls":3},"Georgia"]
[{"$nulls":3},"Germany"]
[{"$nulls":3},"Ghana"]
[{"$nulls":3},"Greece"]
[{"$nulls":3},"Grenada"]
[{"$nulls":3},"Guatemala"]
[{"$nulls":3},"Guinea"]
[{"$nulls":3},"Guinea-Bissau"]
[{"$nulls":3},"Guyana"]
[{"$nulls":3},"Haiti"]
[{"$nulls":3},"Honduras"]
[{"$nulls":3},"Hungary"]
[{"$nulls":3},"Iceland"]
[{"$nulls":3},"India"]
[{"$nulls":3},"Indonesia"]
[{"$nulls":3},"Iran"]
[{"$nulls":3},"Iraq"]
[{"$nulls":3},"Ireland {Republic}"]
[{"$nulls":3},"Israel"]
[{"$nulls":3},"Italy"]
[{"$nulls":3},"Ivory Coast"]
[{"$nulls":3},"Jamaica"]
[{"$nulls":3},"Japan"]
[{"$nulls":3},"Jordan"]
[{"$nulls":3},"Kazakhstan"]
[{"$nulls":3},"Kenya"]
[{"$nulls":3},"Kiribati"]
[{"$nulls":3},"Korea North"]
[{"$nulls":3},"Korea South"]
[{"$nulls":3},"Kosovo"]
[{"$nulls":3},"Kuwait"]
[{"$nulls":3},"Kyrgyzstan"]
[{"$nulls":3},"Laos"]
[{"$nulls":3},"Latvia"]
[{"$nulls":3},"Lebanon"]
[{"$nulls":3},"Lesotho"]
[{"$nulls":3},"Liberia"]
[{"$nulls":3},"Libya"]
[{"$nulls":3},"Liechtenstein"]
[{"$nulls":3},"Lithuania"]
[{"$nulls":3},"Luxembourg"]
[{"$nulls":3},"Macedonia"]
[{"$nulls":3},"Madagascar"]
[{"$nulls":3},"Malawi"]
[{"$nulls":3},"Malaysia"]
[{"$nulls":3},"Maldives"]
[{"$nulls":3},"Mali"]
[{"$nulls":3},"Malta"]
[{"$nulls":3},"Marshall Islands"]
[{"$nulls":3},"Mauritania"]
[{"$nulls":3},"Mauritius"]
[{"$nulls":3},"Mexico"]
[{"$nulls":3},"Micronesia"]
[{"$nulls":3},"Moldova"]
[{"$nulls":3},"Monaco"]
[{"$nulls":3},"Mongolia"]
[{"$nulls":3},"Montenegro"]
[{"$nulls":3},"Morocco"]
[{"$nulls":3},"Mozambique"]
[{"$nulls":3},"Myanmar, {Burma}"]
[{"$nulls":3},"Namibia"]
[{"$nulls":3},"Nauru"]
[{"$nulls":3},"Nepal"]
[{"$nulls":3},"Netherlands"]
[{"$nulls":3},"New Zealand"]
[{"$nulls":3},"Nicaragua"]
[{"$nulls":3},"Niger"]
[{"$nulls":3},"Nigeria"]
[{"$nulls":3},"Norway"]
[{"$nulls":3},"Oman"]
[{"$nulls":3},"Pakistan"]
[{"$nulls":3},"Palau"]
[{"$nulls":3},"Panama"]
[{"$nulls":3},"Papua New Guinea"]
[{"$nulls":3},"Paraguay"]
[{"$nulls":3},"Peru"]
[{"$nulls":3},"Philippines"]
[{"$nulls":3},"Poland"]
[{"$nulls":3},"Portugal"]
[{"$nulls":3},"Qatar"]
[{"$nulls":3},"Romania"]
[{"$nulls":3},"Russian Federation"]
[{"$nulls":3},"Rwanda"]
[{"$nulls":3},"St Kitts & Nevis"]
[{"$nulls":3},"St Lucia"]
[{"$nulls":3},"Saint Vincent & the Grenadines"]
[{"$nulls":3},"Samoa"]
[{"$nulls":3},"San Marino"]
[{"$nulls":3},"Sao Tome & Principe"]
[{"$nulls":3},"Saudi Arabia"]
[{"$nulls":3},"Senegal"]
[{"$nulls":3},"Serbia"]
[{"$nulls":3},"Seychelles"]
[{"$nulls":3},"Sierra Leone"]
[{"$nulls":3},"Singapore"]
[{"$nulls":3},"Slovakia"]
[{"$nulls":3},"Slovenia"]
[{"$nulls":3},"Solomon Islands"]
[{"$nulls":3},"Somalia"]
[{"$nulls":3},"South Africa"]
[{"$nulls":3},"South Sudan"]
[{"$nulls":3},"Spain"]
[{"$nulls":3},"Sri Lanka"]
[{"$nulls":3},"Sudan"]
[{"$nulls":3},"Suriname"]
[{"$nulls":3},"Swaziland"]
[{"$nulls":3},"Sweden"]
[{"$nulls":3},"Switzerland"]
[{"$nulls":3},"Syria"]
[{"$nulls":3},"Taiwan"]
[{"$nulls":3},"Tajikistan"]
[{"$nulls":3},"Tanzania"]
[{"$nulls":3},"Thailand"]
[{"$nulls":3},"Togo"]
[{"$nulls":3},"Tonga"]
[{"$nulls":3},"Trinidad & Tobago"]
[{"$nulls":3},"Tunisia"]
[{"$nulls":3},"Turkey"]
[{"$nulls":3},"Turkmenistan"]
[{"$nulls":3},"Tuvalu"]
[{"$nulls":3},"Uganda"]
[{"$nulls":3},"Ukraine"]
[{"$nulls":3},"United Arab Emirates"]
[{"$nulls":3},"United Kingdom"]
[{"$nulls":3},"United States"]
[{"$nulls":3},"Uruguay"]
[{"$nulls":3},"Uzbekistan"]
[{"$nulls":3},"Vanuatu"]
[{"$nulls":3},"Vatican City"]
[{"$nulls":3},"Venezuela"]
[{"$nulls":3},"Vietnam"]
[{"$nulls":3},"Yemen"]
[{"$nulls":3},"Zambia"]
[{"$nulls":3},"Zimbabwe"]

{"sheet":"Sheet1","index":3,"n_rows":0,"n_cols":0,"rows_kept":0}